[Event "Live Chess"]
[Site "Chess.com"]
[Date "2024.06.01"]
[Round "-"]
[White "powerchs"]
[Black "Zhevzh1k7"]
[Result "1-0"]
[WhiteElo "1254"]
[BlackElo "1070"]
[TimeControl "300"]
[EndTime "11:02:01 PDT"]
[Termination "powerchs won by resignation"]

1. e4 {[%clk 0:04:56.3]} 1... c6 {[%clk 0:04:49.6]} 2. Nc3 {[%clk 0:04:54.5]}
2... d5 {[%clk 0:04:48.4]} 3. d4 {[%clk 0:04:52.2]} 3... dxe4 {[%clk 0:04:46]}
4. Nxe4 {[%clk 0:04:51.1]} 4... Bf5 {[%clk 0:04:45.3]} 5. Ng3 {[%clk 0:04:49.4]}
5... Bg6 {[%clk 0:04:44.1]} 6. Bd3 {[%clk 0:04:46]} 6... Bxd3 {[%clk 0:04:40.6]}
7. Qxd3 {[%clk 0:04:44.6]} 7... Nf6 {[%clk 0:04:40.1]} 8. Nf3 {[%clk 0:04:43.1]}
8... Qb6 {[%clk 0:04:37.5]} 9. O-O {[%clk 0:04:40.5]} 9... Nbd7 {[%clk
0:04:36.2]} 10. c3 {[%clk 0:04:38.5]} 10... e6 {[%clk 0:04:35.1]} 11. a4 {[%clk
0:04:36.6]} 11... Be7 {[%clk 0:04:33.4]} 12. a5 {[%clk 0:04:35.6]} 12... Qc7
{[%clk 0:04:31]} 13. Bg5 {[%clk 0:04:21.1]} 13... h6 {[%clk 0:04:26.5]} 14. Bxf6
{[%clk 0:04:19.5]} 14... Nxf6 {[%clk 0:04:26.1]} 15. Ne5 {[%clk 0:04:15.3]}
15... Nd5 {[%clk 0:04:22]} 16. a6 {[%clk 0:04:10]} 16... b6 {[%clk 0:04:15.6]}
17. Ra4 {[%clk 0:04:03.5]} 17... b5 {[%clk 0:04:13.6]} 18. Raa1 {[%clk
0:03:59.4]} 18... Bd6 {[%clk 0:04:09.7]} 19. Rfe1 {[%clk 0:03:55.2]} 19... f6
{[%clk 0:04:07.6]} 20. Ng6 {[%clk 0:03:50.3]} 20... Rg8 {[%clk 0:04:00.4]} 21.
Ne4 {[%clk 0:03:48.5]} 21... Bxh2+ {[%clk 0:03:58.1]} 22. Kh1 {[%clk 0:03:44.9]}
22... Nf4 {[%clk 0:03:51.9]} 23. Nxf4 {[%clk 0:03:38.5]} 23... Qxf4 {[%clk
0:03:45.5]} 24. c4 {[%clk 0:03:26.1]} 24... f5 {[%clk 0:03:42.4]} 25. Nc3 {[%clk
0:03:18.4]} 25... Qd6 {[%clk 0:03:32.8]} 26. cxb5 {[%clk 0:03:14.3]} 26... cxb5
{[%clk 0:03:31]} 27. Qxb5+ {[%clk 0:03:12.6]} 27... Ke7 {[%clk 0:03:24.3]} 28.
Qb7+ {[%clk 0:03:10.1]} 28... Kf6 {[%clk 0:03:22.7]} 29. Ra5 {[%clk 0:03:01.1]}
29... Rgb8 {[%clk 0:03:18.1]} 30. Qf3 {[%clk 0:02:58.7]} 30... Rxb2 {[%clk
0:03:16.2]} 31. Rae5 {[%clk 0:02:56.9]} 31... Re8 {[%clk 0:03:08.2]} 32. Rxf5+
{[%clk 0:02:48.1]} 32... exf5 {[%clk 0:03:05]} 33. Rxe8 {[%clk 0:02:47]} 33...
Bf4 {[%clk 0:02:54.5]} 34. g3 {[%clk 0:02:38.1]} 34... Bg5 {[%clk 0:02:44.2]}
35. Kg2 {[%clk 0:02:36.2]} 35... Rb3 {[%clk 0:02:35.5]} 36. Ne4+ {[%clk
0:02:30.8]} 36... Kg6 {[%clk 0:02:30.2]} 37. Nxd6 {[%clk 0:02:29.1]} 37... Rxf3
{[%clk 0:02:28.9]} 38. Kxf3 {[%clk 0:02:28]} 38... h5 {[%clk 0:02:25.9]} 39. Ra8
{[%clk 0:02:25.2]} 39... Be7 {[%clk 0:02:23.8]} 40. Nxf5 {[%clk 0:02:18.6]}
40... Kxf5 {[%clk 0:02:22.2]} 41. Rxa7 {[%clk 0:02:17.5]} 41... Bb4 {[%clk
0:02:19.5]} 42. Rxg7 {[%clk 0:02:14.1]} 42... Bf8 {[%clk 0:02:17.5]} 43. Rf7+
{[%clk 0:02:12.2]} 1-0

[Event "Live Chess"]
[Site "Chess.com"]
[Date "2024.06.01"]
[Round "-"]
[White "MellowAesthetic"]
[Black "nigelst"]
[Result "1-0"]
[WhiteElo "2059"]
[BlackElo "1689"]
[TimeControl "300"]
[EndTime "11:02:03 PDT"]
[Termination "MellowAesthetic won by resignation"]

1. e4 {[%clk 0:04:59.3]} 1... c6 {[%clk 0:04:57.3]} 2. d4 {[%clk 0:04:56.2]}
2... d5 {[%clk 0:04:56.4]} 3. exd5 {[%clk 0:04:56.1]} 3... cxd5 {[%clk
0:04:55.5]} 4. c4 {[%clk 0:04:55.7]} 4... Nf6 {[%clk 0:04:54.9]} 5. Nc3 {[%clk
0:04:54]} 5... Nc6 {[%clk 0:04:54.4]} 6. Nf3 {[%clk 0:04:53]} 6... Bg4 {[%clk
0:04:53.2]} 7. cxd5 {[%clk 0:04:51.3]} 7... Nxd5 {[%clk 0:04:49.9]} 8. Qb3
{[%clk 0:04:50.1]} 8... Bxf3 {[%clk 0:04:49]} 9. gxf3 {[%clk 0:04:50]} 9... e6
{[%clk 0:04:47.7]} 10. Qxb7 {[%clk 0:04:48.9]} 10... Nxd4 {[%clk 0:04:45.4]} 11.
Bb5+ {[%clk 0:04:48.5]} 11... Nxb5 {[%clk 0:04:43.7]} 12. Qc6+ {[%clk
0:04:48.1]} 12... Ke7 {[%clk 0:04:42.7]} 13. Qxb5 {[%clk 0:04:47.3]} 13... Qd7
{[%clk 0:04:41.4]} 14. Nxd5+ {[%clk 0:04:46.2]} 14... Qxd5 {[%clk 0:04:38.8]}
15. Bg5+ {[%clk 0:04:45.2]} 15... f6 {[%clk 0:04:37.1]} 16. Qxd5 {[%clk
0:04:44.6]} 16... exd5 {[%clk 0:04:36.1]} 17. Be3 {[%clk 0:04:44.1]} 17... Ke6
{[%clk 0:04:32.3]} 18. O-O-O {[%clk 0:04:43]} 18... Rc8+ {[%clk 0:04:26.5]} 19.
Kb1 {[%clk 0:04:42]} 19... Bc5 {[%clk 0:04:25.2]} 20. Rhe1 {[%clk 0:04:37.6]}
20... Rhe8 {[%clk 0:04:03.3]} 21. Bxc5+ {[%clk 0:04:34.1]} 21... Kd7 {[%clk
0:04:01.9]} 1-0

[Event "Live Chess"]
[Site "Chess.com"]
[Date "2024.06.01"]
[Round "-"]
[White "resipsa6"]
[Black "dl_chess"]
[Result "1-0"]
[WhiteElo "2036"]
[BlackElo "1171"]
[TimeControl "300"]
[EndTime "11:02:22 PDT"]
[Termination "resipsa6 won on time"]

1. d4 {[%clk 0:04:56.4]} 1... Nf6 {[%clk 0:04:57.5]} 2. c4 {[%clk 0:04:55.5]}
2... g6 {[%clk 0:04:56.5]} 3. Nc3 {[%clk 0:04:54.8]} 3... Bg7 {[%clk 0:04:55]}
4. Nf3 {[%clk 0:04:54.2]} 4... d6 {[%clk 0:04:53.9]} 5. e3 {[%clk 0:04:53.4]}
5... e5 {[%clk 0:04:29.8]} 6. dxe5 {[%clk 0:04:51.8]} 6... Ng4 {[%clk
0:04:13.4]} 7. exd6 {[%clk 0:04:48.8]} 7... cxd6 {[%clk 0:04:02.6]} 8. h3 {[%clk
0:04:43.4]} 8... Nf6 {[%clk 0:03:56.7]} 9. Bd3 {[%clk 0:04:36.5]} 9... O-O
{[%clk 0:03:54.7]} 10. O-O {[%clk 0:04:30]} 10... Nc6 {[%clk 0:03:53.3]} 11. a3
{[%clk 0:04:26.3]} 11... Be6 {[%clk 0:03:48]} 12. Nd4 {[%clk 0:04:20.3]} 12...
Nxd4 {[%clk 0:03:43.6]} 13. exd4 {[%clk 0:04:20.2]} 13... Rc8 {[%clk 0:03:38.8]}
14. b3 {[%clk 0:04:18.4]} 14... a6 {[%clk 0:03:24.2]} 15. Bb2 {[%clk 0:04:15.3]}
15... d5 {[%clk 0:03:15.9]} 16. c5 {[%clk 0:04:12.7]} 16... b6 {[%clk
0:03:02.1]} 17. Na4 {[%clk 0:04:07.4]} 17... b5 {[%clk 0:02:57.4]} 18. Nb6
{[%clk 0:04:06.3]} 18... Rc7 {[%clk 0:02:54.7]} 19. a4 {[%clk 0:04:05]} 19... b4
{[%clk 0:02:40.8]} 20. f4 {[%clk 0:04:03.1]} 20... Nd7 {[%clk 0:02:39.5]} 21.
Nxd7 {[%clk 0:04:01.6]} 21... Qxd7 {[%clk 0:02:32.9]} 22. Qd2 {[%clk 0:03:54.6]}
22... a5 {[%clk 0:02:31.5]} 23. Rae1 {[%clk 0:03:53.9]} 23... Qd8 {[%clk
0:01:57.2]} 24. f5 {[%clk 0:03:51.3]} 24... Bd7 {[%clk 0:01:39.3]} 25. fxg6
{[%clk 0:03:50.3]} 25... fxg6 {[%clk 0:01:36.6]} 26. Rxf8+ {[%clk 0:03:48.1]}
26... Qxf8 {[%clk 0:01:33.8]} 27. Rf1 {[%clk 0:03:47]} 27... Qe7 {[%clk
0:01:27]} 28. Qf4 {[%clk 0:03:44]} 28... Rc8 {[%clk 0:01:18.5]} 29. Qf2 {[%clk
0:03:28.7]} 29... Rf8 {[%clk 0:01:15.1]} 30. Qe2 {[%clk 0:03:27.2]} 30... Rxf1+
{[%clk 0:01:13]} 31. Kxf1 {[%clk 0:03:23.9]} 31... Qf6+ {[%clk 0:01:05.7]} 32.
Qf2 {[%clk 0:03:18.8]} 32... Qxf2+ {[%clk 0:01:03.6]} 33. Kxf2 {[%clk
0:03:16.7]} 33... Kf7 {[%clk 0:00:59.6]} 34. Bb5 {[%clk 0:03:07.3]} 34... Bc8
{[%clk 0:00:42.8]} 35. Bc6 {[%clk 0:02:58.5]} 35... Ke6 {[%clk 0:00:40.1]} 36.
Ke2 {[%clk 0:02:51.2]} 36... Bd7 {[%clk 0:00:38.8]} 37. Bb5 {[%clk 0:02:48.2]}
37... Bc8 {[%clk 0:00:33.7]} 38. Kd3 {[%clk 0:02:43.2]} 38... Kf5 {[%clk
0:00:29.2]} 39. Bc1 {[%clk 0:02:40.1]} 39... Bf6 {[%clk 0:00:18]} 40. g4+ {[%clk
0:02:39.1]} 40... Ke6 {[%clk 0:00:15.6]} 41. Bf4 {[%clk 0:02:38.2]} 41... Be7
{[%clk 0:00:06.9]} 42. Bc7 {[%clk 0:02:36.3]} 42... Bb7 {[%clk 0:00:01.2]} 43.
Bxa5 {[%clk 0:02:34]} 1-0

[Event "Live Chess"]
[Site "Chess.com"]
[Date "2024.06.01"]
[Round "-"]
[White "asingardenof"]
[Black "DoctorMantisTobogganMD"]
[Result "0-1"]
[WhiteElo "619"]
[BlackElo "2195"]
[TimeControl "300"]
[EndTime "11:02:37 PDT"]
[Termination "DoctorMantisTobogganMD won by checkmate"]

1. d4 {[%clk 0:04:55]} 1... Nf6 {[%clk 0:04:55.3]} 2. c4 {[%clk 0:04:53.3]} 2...
Nc6 {[%clk 0:04:54.5]} 3. Nf3 {[%clk 0:04:49.3]} 3... e6 {[%clk 0:04:52.9]} 4.
g3 {[%clk 0:04:48.2]} 4... Bb4+ {[%clk 0:04:51.3]} 5. Nc3 {[%clk 0:04:44.9]}
5... Qe7 {[%clk 0:04:50.9]} 6. Bg2 {[%clk 0:04:41.8]} 6... O-O {[%clk
0:04:49.6]} 7. O-O {[%clk 0:04:40.1]} 7... Bxc3 {[%clk 0:04:46.6]} 8. bxc3
{[%clk 0:04:38.3]} 8... d6 {[%clk 0:04:46.5]} 9. c5 {[%clk 0:04:30.4]} 9... e5
{[%clk 0:04:44]} 10. e3 {[%clk 0:04:23.8]} 10... Bg4 {[%clk 0:04:39.8]} 11. Qc2
{[%clk 0:03:55.8]} 11... dxc5 {[%clk 0:04:35]} 12. dxe5 {[%clk 0:03:46.8]} 12...
Nxe5 {[%clk 0:04:29]} 13. h3 {[%clk 0:03:37.2]} 13... Nxf3+ {[%clk 0:04:18.5]}
14. Kh1 {[%clk 0:03:31.2]} 14... Bh5 {[%clk 0:04:02]} 15. g4 {[%clk 0:03:25.2]}
15... Bg6 {[%clk 0:03:55.3]} 16. Bxf3 {[%clk 0:03:24.5]} 16... Bxc2 {[%clk
0:03:53.4]} 17. Bxb7 {[%clk 0:03:06.4]} 17... Be4+ {[%clk 0:03:51.6]} 18. Bxe4
{[%clk 0:03:04.8]} 18... Qxe4+ {[%clk 0:03:26.1]} 19. f3 {[%clk 0:03:04.7]}
19... Qd3 {[%clk 0:03:05.8]} 20. g5 {[%clk 0:02:42.5]} 20... Qxc3 {[%clk
0:02:52.7]} 21. Rb1 {[%clk 0:02:34.9]} 21... Qd3 {[%clk 0:02:49.5]} 22. Kg2
{[%clk 0:02:34.2]} 22... Qxb1 {[%clk 0:02:43.6]} 23. Ba3 {[%clk 0:02:19.8]}
23... Qxa2+ {[%clk 0:02:23.8]} 24. Rf2 {[%clk 0:02:14.7]} 24... Qxa3 {[%clk
0:02:21.6]} 25. Kg3 {[%clk 0:02:14.6]} 25... Qxe3 {[%clk 0:02:20.8]} 26. Kg2
{[%clk 0:02:06.4]} 26... Qxg5+ {[%clk 0:02:18.9]} 27. Kf1 {[%clk 0:02:04]} 27...
Rfe8 {[%clk 0:02:14.6]} 28. Rg2 {[%clk 0:02:02.9]} 28... Qe3 {[%clk 0:02:11.2]}
29. Rf2 {[%clk 0:01:58.9]} 29... Nh5 {[%clk 0:02:07.4]} 30. Kg2 {[%clk
0:01:53.3]} 30... Qg5+ {[%clk 0:01:41.9]} 31. Kf1 {[%clk 0:01:51.3]} 31... Qg3
{[%clk 0:01:39.2]} 32. f4 {[%clk 0:01:39.7]} 32... Rab8 {[%clk 0:01:34.6]} 33.
Rg2 {[%clk 0:01:36.3]} 33... Re1# {[%clk 0:01:32]} 0-1

[Event "Live Chess"]
[Site "Chess.com"]
[Date "2024.06.01"]
[Round "-"]
[White "Ninifu"]
[Black "sshamil"]
[Result "1-0"]
[WhiteElo "2027"]
[BlackElo "1682"]
[TimeControl "300"]
[EndTime "11:02:42 PDT"]
[Termination "Ninifu won by resignation"]

1. d4 {[%clk 0:04:56.9]} 1... g6 {[%clk 0:04:59.2]} 2. c4 {[%clk 0:04:55.2]}
2... Bg7 {[%clk 0:04:58.5]} 3. e4 {[%clk 0:04:54.8]} 3... d6 {[%clk 0:04:55.9]}
4. Nc3 {[%clk 0:04:53.9]} 4... Nf6 {[%clk 0:04:55.1]} 5. f4 {[%clk 0:04:53.3]}
5... O-O {[%clk 0:04:53.6]} 6. Nf3 {[%clk 0:04:52.7]} 6... b6 {[%clk 0:04:52.9]}
7. Bd3 {[%clk 0:04:48]} 7... Bb7 {[%clk 0:04:51.9]} 8. O-O {[%clk 0:04:45.7]}
8... a5 {[%clk 0:04:47.4]} 9. e5 {[%clk 0:04:40.9]} 9... Nfd7 {[%clk 0:04:46]}
10. Be3 {[%clk 0:04:28.3]} 10... f6 {[%clk 0:04:43.2]} 11. e6 {[%clk 0:04:24]}
11... Nc5 {[%clk 0:04:37.1]} 12. dxc5 {[%clk 0:04:21]} 12... dxc5 {[%clk
0:04:36.4]} 13. Be4 {[%clk 0:04:18.5]} 13... Nc6 {[%clk 0:04:32.9]} 14. Qxd8
{[%clk 0:04:14.3]} 14... Raxd8 {[%clk 0:04:31.6]} 15. Rad1 {[%clk 0:04:13.6]}
15... f5 {[%clk 0:04:30.7]} 16. Bc2 {[%clk 0:03:56]} 16... Nd4 {[%clk
0:04:29.4]} 17. Bxd4 {[%clk 0:03:44.6]} 17... cxd4 {[%clk 0:04:24.4]} 18. Nd5
{[%clk 0:03:39.6]} 18... Bxd5 {[%clk 0:04:18.1]} 19. cxd5 {[%clk 0:03:38.4]}
19... Rxd5 {[%clk 0:04:17.1]} 20. Bb3 {[%clk 0:03:37.2]} 20... Rd6 {[%clk
0:04:14.6]} 21. Rd3 {[%clk 0:03:25]} 21... b5 {[%clk 0:04:12.2]} 22. a4 {[%clk
0:02:48.1]} 22... c6 {[%clk 0:04:02.9]} 23. Rfd1 {[%clk 0:02:41.9]} 23... Rfd8
{[%clk 0:03:59.7]} 24. Rc1 {[%clk 0:02:37.4]} 24... Bf6 {[%clk 0:03:50.2]} 25.
Rc5 {[%clk 0:02:35.3]} 25... Kf8 {[%clk 0:03:36.8]} 26. axb5 {[%clk 0:02:32.9]}
26... cxb5 {[%clk 0:03:34.7]} 27. Rxb5 {[%clk 0:02:32.1]} 27... Ra8 {[%clk
0:03:32.1]} 28. Rd5 {[%clk 0:02:26.1]} 28... a4 {[%clk 0:03:29.2]} 29. Rxd6
{[%clk 0:02:24.5]} 29... exd6 {[%clk 0:03:28.5]} 30. Bd5 {[%clk 0:02:20.8]}
30... Ra5 {[%clk 0:03:25.4]} 31. Ba2 {[%clk 0:02:11.6]} 31... Ke7 {[%clk
0:03:23]} 32. Nxd4 {[%clk 0:02:08.5]} 32... a3 {[%clk 0:03:16.5]} 33. Nc6+
{[%clk 0:02:05.8]} 1-0

[Event "Live Chess"]
[Site "Chess.com"]
[Date "2024.06.01"]
[Round "-"]
[White "TigerTank70"]
[Black "grillage"]
[Result "1-0"]
[WhiteElo "2202"]
[BlackElo "1894"]
[TimeControl "300"]
[EndTime "11:02:43 PDT"]
[Termination "TigerTank70 won by resignation"]

1. e4 {[%clk 0:04:57.7]} 1... d5 {[%clk 0:04:58.2]} 2. exd5 {[%clk 0:04:56.4]}
2... Qxd5 {[%clk 0:04:56.6]} 3. d4 {[%clk 0:04:56.3]} 3... c6 {[%clk 0:04:54]}
4. Nf3 {[%clk 0:04:54.2]} 4... Bg4 {[%clk 0:04:49.6]} 5. Be2 {[%clk 0:04:52.2]}
5... Nf6 {[%clk 0:04:45.8]} 6. c4 {[%clk 0:04:51.3]} 6... Qd8 {[%clk 0:04:44]}
7. h3 {[%clk 0:04:48.5]} 7... Bxf3 {[%clk 0:04:42.5]} 8. Bxf3 {[%clk 0:04:47.4]}
8... e6 {[%clk 0:04:42.1]} 9. O-O {[%clk 0:04:45.7]} 9... Bd6 {[%clk 0:04:37.9]}
10. Nc3 {[%clk 0:04:44.6]} 10... O-O {[%clk 0:04:33.9]} 11. Bg5 {[%clk
0:04:43.4]} 11... Nbd7 {[%clk 0:04:32.4]} 12. a3 {[%clk 0:04:33.4]} 12... Qc7
{[%clk 0:04:26.8]} 13. b4 {[%clk 0:04:31.1]} 13... Rfe8 {[%clk 0:04:24.9]} 14.
Qd2 {[%clk 0:04:27.1]} 14... Rad8 {[%clk 0:03:55]} 15. b5 {[%clk 0:04:06.9]}
15... c5 {[%clk 0:03:20.2]} 16. d5 {[%clk 0:03:56.4]} 16... e5 {[%clk 0:03:07]}
17. Ne4 {[%clk 0:03:29.4]} 17... Nxe4 {[%clk 0:02:55.9]} 18. Bxe4 {[%clk
0:03:29.3]} 18... f6 {[%clk 0:02:53]} 19. Bh4 {[%clk 0:03:21]} 19... Nf8 {[%clk
0:02:50]} 20. Qc2 {[%clk 0:03:14.9]} 20... Qf7 {[%clk 0:02:43.8]} 21. g4 {[%clk
0:03:09.1]} 21... Ng6 {[%clk 0:02:35.1]} 22. Bg3 {[%clk 0:03:08]} 22... Nf8
{[%clk 0:02:31.3]} 23. a4 {[%clk 0:03:06.3]} 23... b6 {[%clk 0:02:30]} 24. a5
{[%clk 0:03:05.3]} 24... Bc7 {[%clk 0:02:25]} 25. axb6 {[%clk 0:02:55.4]} 25...
Bxb6 {[%clk 0:02:24.1]} 26. Rfd1 {[%clk 0:02:52.8]} 26... Rd6 {[%clk 0:02:22.9]}
27. f4 {[%clk 0:02:47]} 27... Ng6 {[%clk 0:02:18.1]} 28. fxe5 {[%clk 0:02:24.6]}
28... fxe5 {[%clk 0:02:09.3]} 29. Rf1 {[%clk 0:02:17.9]} 29... Qe7 {[%clk
0:01:56.6]} 30. Rf5 {[%clk 0:01:53.7]} 30... Rf8 {[%clk 0:01:49.8]} 31. Raf1
{[%clk 0:01:51.4]} 31... Rdf6 {[%clk 0:01:42.7]} 32. Rxf6 {[%clk 0:01:12.6]}
32... Rxf6 {[%clk 0:01:40.8]} 33. Bxg6 {[%clk 0:01:07.7]} 33... Rxg6 {[%clk
0:01:35]} 34. Qf5 {[%clk 0:01:00.8]} 34... e4 {[%clk 0:01:16.5]} 35. d6 {[%clk
0:00:54.1]} 35... Qd8 {[%clk 0:01:08.1]} 36. Qf7+ {[%clk 0:00:52.2]} 1-0

[Event "Live Chess"]
[Site "Chess.com"]
[Date "2024.06.01"]
[Round "-"]
[White "Bob2pen"]
[Black "KyryloPoluliakh"]
[Result "0-1"]
[WhiteElo "1813"]
[BlackElo "1525"]
[TimeControl "300"]
[EndTime "11:02:44 PDT"]
[Termination "KyryloPoluliakh won by resignation"]

1. e4 {[%clk 0:04:56.6]} 1... c5 {[%clk 0:04:58.7]} 2. Nf3 {[%clk 0:04:54.8]}
2... Nc6 {[%clk 0:04:56.5]} 3. d4 {[%clk 0:04:53.5]} 3... cxd4 {[%clk
0:04:53.8]} 4. Nxd4 {[%clk 0:04:51.3]} 4... g6 {[%clk 0:04:51.1]} 5. c4 {[%clk
0:04:49.6]} 5... Bg7 {[%clk 0:04:48.7]} 6. Be3 {[%clk 0:04:48.5]} 6... Nf6
{[%clk 0:04:45.2]} 7. Nc3 {[%clk 0:04:47]} 7... O-O {[%clk 0:04:43.8]} 8. f3
{[%clk 0:04:45.7]} 8... d6 {[%clk 0:04:41.2]} 9. Be2 {[%clk 0:04:44.7]} 9... Qb6
{[%clk 0:04:23.9]} 10. Qd2 {[%clk 0:04:37.5]} 10... a6 {[%clk 0:04:16.5]} 11.
Nf5 {[%clk 0:04:33.5]} 11... Qd8 {[%clk 0:03:50.7]} 12. Nxg7 {[%clk 0:04:31.7]}
12... Kxg7 {[%clk 0:03:48.7]} 13. Bh6+ {[%clk 0:04:30]} 13... Kg8 {[%clk
0:03:48.1]} 14. Bxf8 {[%clk 0:04:28.8]} 14... Qxf8 {[%clk 0:03:47.4]} 15. O-O
{[%clk 0:04:27.5]} 15... Ne5 {[%clk 0:03:43.9]} 16. Nd5 {[%clk 0:04:24.9]} 16...
Nxd5 {[%clk 0:03:39.4]} 17. cxd5 {[%clk 0:04:23.4]} 17... b5 {[%clk 0:03:30.2]}
18. Rfc1 {[%clk 0:04:21.3]} 18... Bb7 {[%clk 0:03:25.6]} 19. Rc7 {[%clk
0:04:18.9]} 19... Rb8 {[%clk 0:03:22.3]} 20. Rac1 {[%clk 0:04:17.3]} 20... Qd8
{[%clk 0:03:19.3]} 21. Qc3 {[%clk 0:04:05.2]} 21... Nc4 {[%clk 0:03:12.4]} 22.
Rxc4 {[%clk 0:03:48.8]} 22... bxc4 {[%clk 0:03:09.4]} 23. Qxc4 {[%clk 0:03:47]}
23... Rc8 {[%clk 0:03:05.8]} 24. Qxc8 {[%clk 0:03:28.2]} 24... Bxc8 {[%clk
0:03:02.3]} 25. b3 {[%clk 0:03:26.6]} 25... Qb6+ {[%clk 0:02:59.7]} 26. Kf1
{[%clk 0:03:23.9]} 26... Bd7 {[%clk 0:02:58.6]} 27. Rc3 {[%clk 0:03:18.7]} 27...
Bb5 {[%clk 0:02:54.8]} 28. Bxb5 {[%clk 0:03:15.2]} 28... Qxb5+ {[%clk
0:02:53.7]} 29. Kf2 {[%clk 0:03:13.8]} 29... a5 {[%clk 0:02:48.9]} 30. a4 {[%clk
0:03:11.1]} 30... Qb4 {[%clk 0:02:44.9]} 31. Re3 {[%clk 0:03:09.2]} 31... Qd2+
{[%clk 0:02:39.7]} 32. Re2 {[%clk 0:03:07.1]} 32... Qd4+ {[%clk 0:02:37.3]} 33.
Kg3 {[%clk 0:03:02.8]} 33... Qd3 {[%clk 0:02:30.1]} 34. Rb2 {[%clk 0:02:59.2]}
34... Qc3 {[%clk 0:02:25]} 35. Rb1 {[%clk 0:02:57.9]} 35... Qc2 {[%clk
0:02:19.7]} 0-1

[Event "Live Chess"]
[Site "Chess.com"]
[Date "2024.06.01"]
[Round "-"]
[White "dhairyapandyauk"]
[Black "WelshTiger"]
[Result "0-1"]
[WhiteElo "1731"]
[BlackElo "2536"]
[TimeControl "300"]
[EndTime "11:03:00 PDT"]
[Termination "WelshTiger won by resignation"]

1. e4 {[%clk 0:04:58.2]} 1... c5 {[%clk 0:04:58.9]} 2. c3 {[%clk 0:04:57.3]}
2... g6 {[%clk 0:04:55]} 3. d3 {[%clk 0:04:55]} 3... Bg7 {[%clk 0:04:53.3]} 4.
f4 {[%clk 0:04:54.6]} 4... e6 {[%clk 0:04:51.2]} 5. Nf3 {[%clk 0:04:54.2]} 5...
d5 {[%clk 0:04:46.8]} 6. Be2 {[%clk 0:04:40.1]} 6... Nc6 {[%clk 0:04:44.2]} 7.
Be3 {[%clk 0:04:37.9]} 7... d4 {[%clk 0:04:42.2]} 8. Bf2 {[%clk 0:04:36.8]} 8...
Nge7 {[%clk 0:04:32.6]} 9. Qc2 {[%clk 0:04:22.1]} 9... b6 {[%clk 0:04:29.1]} 10.
a4 {[%clk 0:04:18.4]} 10... Bb7 {[%clk 0:04:21.8]} 11. a5 {[%clk 0:04:17]} 11...
Nxa5 {[%clk 0:04:17.5]} 12. cxd4 {[%clk 0:04:15.4]} 12... cxd4 {[%clk
0:04:16.7]} 13. Nbd2 {[%clk 0:04:04.2]} 13... O-O {[%clk 0:04:13.5]} 14. O-O
{[%clk 0:03:59.8]} 14... Nac6 {[%clk 0:03:51.1]} 15. Qa4 {[%clk 0:03:50.8]}
15... a5 {[%clk 0:03:46.5]} 16. Rfc1 {[%clk 0:03:47.7]} 16... Nb4 {[%clk
0:03:44.6]} 17. Nb3 {[%clk 0:03:40.3]} 17... Ba6 {[%clk 0:03:35.6]} 18. Nbxd4
{[%clk 0:03:32.1]} 18... Bxd3 {[%clk 0:03:29.7]} 19. Bxd3 {[%clk 0:03:17.7]}
19... Nxd3 {[%clk 0:03:28.4]} 20. Rc3 {[%clk 0:03:17.2]} 20... Nxf2 {[%clk
0:03:27.3]} 21. Kxf2 {[%clk 0:03:16.4]} 21... Qb8 {[%clk 0:03:12.3]} 22. g3
{[%clk 0:03:13.9]} 22... Rd8 {[%clk 0:03:09.6]} 23. Rd1 {[%clk 0:02:58.2]} 23...
Qb7 {[%clk 0:03:08.3]} 24. Ke3 {[%clk 0:02:50.3]} 24... Rac8 {[%clk 0:02:56]}
25. Rcd3 {[%clk 0:02:47.5]} 25... f5 {[%clk 0:02:50.7]} 26. Nxe6 {[%clk
0:02:40.4]} 26... Rxd3+ {[%clk 0:02:49.9]} 27. Rxd3 {[%clk 0:02:39.6]} 27...
fxe4 {[%clk 0:02:48.6]} 28. Qxe4 {[%clk 0:02:37.7]} 28... Nf5+ {[%clk
0:02:47.6]} 29. Kf2 {[%clk 0:02:33.8]} 29... Qxe4 {[%clk 0:02:46.5]} 0-1

[Event "Live Chess"]
[Site "Chess.com"]
[Date "2024.06.01"]
[Round "-"]
[White "chessfiction"]
[Black "IanCalvert2"]
[Result "1-0"]
[WhiteElo "2411"]
[BlackElo "1447"]
[TimeControl "300"]
[EndTime "11:03:10 PDT"]
[Termination "chessfiction won by resignation"]

1. e4 {[%clk 0:04:52.9]} 1... d5 {[%clk 0:04:58.8]} 2. exd5 {[%clk 0:04:51.7]}
2... Qxd5 {[%clk 0:04:57.6]} 3. d4 {[%clk 0:04:50.8]} 3... e5 {[%clk 0:04:55.5]}
4. Nc3 {[%clk 0:04:48]} 4... Bb4 {[%clk 0:04:51.8]} 5. Nf3 {[%clk 0:04:24.3]}
5... Nc6 {[%clk 0:04:46.5]} 6. Be3 {[%clk 0:04:19.4]} 6... Bg4 {[%clk
0:04:16.6]} 7. Be2 {[%clk 0:04:08.8]} 7... O-O-O {[%clk 0:03:59.1]} 8. dxe5
{[%clk 0:04:04.3]} 8... Qxd1+ {[%clk 0:03:18.4]} 9. Rxd1 {[%clk 0:04:02.2]} 9...
Rxd1+ {[%clk 0:03:16.6]} 10. Bxd1 {[%clk 0:04:02.1]} 10... Bxf3 {[%clk
0:03:12.5]} 11. Bxf3 {[%clk 0:04:02]} 11... Nxe5 {[%clk 0:03:10.6]} 12. Be2
{[%clk 0:03:59.3]} 12... Nf6 {[%clk 0:03:03.9]} 13. O-O {[%clk 0:03:57.8]} 13...
Rd8 {[%clk 0:02:59.1]} 14. h3 {[%clk 0:03:49.5]} 14... Nd5 {[%clk 0:02:48.6]}
15. Nxd5 {[%clk 0:02:58.7]} 15... Rxd5 {[%clk 0:02:43.3]} 16. f4 {[%clk
0:02:58.6]} 16... Nc6 {[%clk 0:02:32.9]} 17. Bf3 {[%clk 0:02:57.1]} 17... Ra5
{[%clk 0:02:18.9]} 18. a3 {[%clk 0:02:54.8]} 18... Bc5 {[%clk 0:02:16.1]} 19.
Bxc5 {[%clk 0:02:49.1]} 19... Rxc5 {[%clk 0:02:13.7]} 20. c3 {[%clk 0:02:49]}
20... Rf5 {[%clk 0:01:20.1]} 21. Bg4 {[%clk 0:02:40.9]} 1-0